lending/lending_fUSD_20250131
["ID","MTS","AMOUNT","RATE_DAILY","PERIOD"]
[351034683,1738302651976,-500.0,0.00019452,3]
[351034686,1738302651987,-592.49,0.00019452,3]
[351034688,1738302651997,-500.0,0.00019452,3]
[351034690,1738302652007,-500.0,0.00019452,3]
[351034692,1738302652017,-500.0,0.00019452,3]
[351034694,1738302652027,-1296.32,0.00019452,3]
[351034696,1738302652037,-828.71,0.00019452,3]
[351034698,1738302652047,-500.0,0.00019452,3]
[351034700,1738302652057,-500.0,0.00019452,3]
[351034702,1738302652067,-500.0,0.00019452,3]
[351034704,1738302652077,-564.86,0.00019452,3]
[351034707,1738302652088,-589.55,0.00019452,3]
[351034709,1738302652101,-632.81,0.00019452,3]
[351034711,1738302652113,-1225.26,0.00019452,3]
[351034713,1738302652123,-500.0,0.00019452,3]
[351034715,1738302652134,-500.0,0.00019452,3]
[351034717,1738302652144,-824.54,0.00019452,3]
[351034719,1738302652154,-863.34,0.00019452,3]
[351034721,1738302652165,-504.39,0.00019452,3]
[351034723,1738302652176,-500.0,0.00019452,3]
[351034725,1738302652186,-500.0,0.00019452,3]
[351034727,1738302652197,-500.0,0.00019452,3]
[351034730,1738302652207,-900.29,0.00019452,3]
[351034732,1738302652218,-329.33882796,0.00019452,3]
[351034734,1738302652228,-500.0,0.00019452,3]
[351034736,1738302652238,-500.0,0.00019452,3]
[351034738,1738302652248,-500.0,0.00019452,3]
[351034740,1738302652259,-500.0,0.00019452,3]
[351034742,1738302652269,-655.9,0.00019452,3]
[351034744,1738302652279,-500.0,0.00019452,3]
[351034746,1738302652290,-500.0,0.00019452,3]
[351034748,1738302652300,-613.6,0.00019452,3]
[351034750,1738302652310,-500.0,0.00019452,3]
[351034752,1738302652320,-1377.54,0.00019452,3]
[351034755,1738302652330,-1943.55,0.00019452,3]
[351034757,1738302652340,-500.0,0.00019452,3]
[351034759,1738302652351,-1354.77,0.00019452,3]
[351034761,1738302652361,-500.0,0.00019452,3]
[351034763,1738302652371,-946.02,0.00019452,3]
[351034765,1738302652380,-500.0,0.00019452,3]
[351034767,1738302652390,-1541.47,0.00019452,3]
[351034769,1738302652404,-1088.91,0.00019452,3]
[351034772,1738302652414,-660.19,0.00019452,3]
[351034774,1738302652423,-532.31,0.00019452,3]
[351034776,1738302652434,-500.0,0.00019452,3]
[351034778,1738302652444,-964.35,0.00019452,3]
[351034780,1738302652454,-500.0,0.00019452,3]
[351034782,1738302652464,-551.8,0.00019452,3]
[351034784,1738302652475,-574.76,0.00019452,3]
[351034786,1738302652485,-616.35,0.00019452,3]
[351034788,1738302652495,-500.0,0.00019452,3]
[351034790,1738302652506,-1007.99,0.00019452,3]
[351034792,1738302652518,-1101.97,0.00019452,3]
[351034794,1738302652528,-500.0,0.00019452,3]
[351034796,1738302652538,-500.0,0.00019452,3]
[351034798,1738302652548,-579.05,0.00019452,3]
[351034800,1738302652559,-500.0,0.00019452,3]
[351034802,1738302652569,-500.0,0.00019452,3]
[351034805,1738302652580,-1109.97,0.00019452,3]
[351034807,1738302652593,-500.0,0.00019452,3]
[351034809,1738302652603,-1141.62,0.00019452,3]
[351034811,1738302652612,-500.0,0.00019452,3]
[351034813,1738302652623,-500.0,0.00019452,3]
[351034815,1738302652633,-1624.24,0.00019452,3]
[351034817,1738302652643,-1397.64,0.00019452,3]
[351034844,1738302652891,-916.34,0.00019452,3]
[351034846,1738302652902,-500.0,0.00019452,3]
[351034847,1738302652912,-1406.58,0.00019452,3]
[351034848,1738302652921,-500.0,0.00019452,3]
[351034849,1738302652931,-721.05,0.00019452,3]
[351034850,1738302652940,-1028.73,0.00019452,2]
[351034851,1738302652950,-500.0,0.00019452,3]
[351034852,1738302652961,-1207.48,0.00019452,3]
[351034853,1738302652971,-1239.37,0.00019452,3]
[351034854,1738302652981,-500.0,0.00019452,3]
[351034855,1738302652990,-1421.22,0.00019452,3]
[351034856,1738302653000,-500.0,0.00019452,3]
[351034857,1738302653009,-583.97,0.00019452,3]
[351034858,1738302653019,-500.0,0.00019452,3]
[351034859,1738302653028,-500.0,0.00019452,3]
[351034860,1738302653038,-1588.61,0.00019452,3]
[351034861,1738302653048,-500.0,0.00019452,3]
[351034862,1738302653058,-500.0,0.00019452,3]
[351034863,1738302653067,-1945.74,0.00019452,3]
[351034864,1738302653077,-1420.31,0.00019452,3]
[351034865,1738302653087,-627.57,0.00019452,3]
[351034866,1738302653097,-500.0,0.00019452,3]
[351034867,1738302653107,-686.23,0.00019452,3]
[351034868,1738302653117,-995.77,0.00019452,3]
[351034869,1738302653127,-1253.53,0.00019452,3]
[351034870,1738302653137,-4790.72,0.00019452,3]
[351034872,1738302653147,-500.0,0.00019452,3]
[351034874,1738302653158,-2786.11,0.00019452,3]
[351034878,1738302653180,-654.49,0.00019452,3]
[351034880,1738302653195,-2506.48,0.00019452,3]
[351034882,1738302653207,-500.0,0.00019452,3]
[351034885,1738302653220,-687.39,0.00019452,3]
[351034887,1738302653231,-500.0,0.00019452,3]
[351034888,1738302653243,-500.0,0.00019452,3]
[351034889,1738302653253,-1267.21,0.00019452,3]
[351034890,1738302653264,-500.0,0.00019452,3]
[351034891,1738302653275,-500.0,0.00019452,3]
[351034892,1738302653286,-15606.5,0.00019452,3]
[351034893,1738302653297,-1298.55,0.00019452,3]
[351034895,1738302653308,-500.0,0.00019452,3]
[351034897,1738302653324,-827.95,0.00019452,3]
[351034900,1738302653335,-500.0,0.00019452,3]
[351034902,1738302653346,-500.0,0.00019452,3]
[351034904,1738302653356,-1872.7,0.00019452,3]
[351034906,1738302653367,-500.0,0.00019452,3]
[351034908,1738302653378,-500.0,0.00019452,3]
[351034910,1738302653389,-500.0,0.00019452,3]
[351034912,1738302653400,-1129.05,0.00019452,3]
[351034915,1738302653411,-500.0,0.00019452,3]
[351034917,1738302653422,-1871.34,0.00019452,3]
[351034919,1738302653433,-500.0,0.00019452,3]
[351034921,1738302653443,-500.0,0.00019452,3]
[351034923,1738302653453,-500.0,0.00019452,3]
[351034924,1738302653464,-1733.04,0.00019452,3]
[351034925,1738302653476,-758.44,0.00019452,3]
[351034926,1738302653487,-500.0,0.00019452,3]
[351034927,1738302653497,-1385.07,0.00019452,3]
[351034928,1738302653511,-500.0,0.00019452,3]
[351034929,1738302653521,-2042.62,0.00019452,3]
[351034930,1738302653532,-8680.59,0.00019452,3]
[351034931,1738302653542,-2417.47,0.00019452,3]
[351034932,1738302653553,-1578.88,0.00019452,3]
[351034933,1738302653563,-500.0,0.00019452,3]
[351034934,1738302653574,-1757.34,0.00019452,3]
[351034935,1738302653584,-1041.19,0.00019452,3]
[351034936,1738302653595,-1664.53,0.00019452,3]
[351034937,1738302653606,-420.99218102,0.00019452,3]
[351034938,1738302653617,-3896.39,0.00019452,3]
[351034939,1738302653627,-2053.54,0.00019452,3]
[351034940,1738302653637,-996.13,0.00019452,3]
[351034941,1738302653648,-500.0,0.00019452,3]
[351034942,1738302653658,-2504.72,0.00019452,3]
[351034943,1738302653668,-2167.61,0.00019452,3]
[351034944,1738302653678,-1499.86,0.00019452,3]
[351034945,1738302653694,-500.0,0.00019452,3]
[351034946,1738302653705,-500.0,0.00019452,3]
[351034947,1738302653715,-3567.47,0.00019452,3]
[351034948,1738302653728,-2281.42,0.00019452,3]
[351034949,1738302653739,-1598.0,0.00019452,3]
[351034950,1738302653750,-4589.57,0.00019452,3]
[351034951,1738302653761,-1436.83,0.00019452,3]
[351034952,1738302653771,-500.0,0.00019452,3]
[351034953,1738302653782,-543.56234252,0.00019452,3]
[351034954,1738302653794,-500.0,0.00019452,3]
[351034955,1738302653806,-645.73,0.00019452,3]
[351034956,1738302653816,-633.0,0.00019452,3]
[351034957,1738302653827,-557.95,0.00019452,3]
[351034958,1738302653838,-2148.06,0.00019452,3]
[351034959,1738302653849,-1702.74,0.00019452,3]
[351034960,1738302653859,-1305.49,0.00019452,3]
[351034961,1738302653870,-5325.61,0.00019452,3]
[351034962,1738302653880,-2950.63,0.00019452,3]
[351034963,1738302653890,-997.14,0.00019452,3]
[351034964,1738302653901,-1705.81,0.00019452,3]
[351034965,1738302653911,-1384.48,0.00019452,3]
[351034966,1738302653922,-1568.53,0.00019452,3]
[351034967,1738302653932,-3539.91,0.00019452,3]
[351034968,1738302653942,-994.29,0.00019452,3]
[351034969,1738302653954,-3615.68,0.00019452,3]
[351034970,1738302653964,-763.88,0.00019452,3]
[351034971,1738302653976,-10055.06,0.00019452,3]
[351034972,1738302653986,-500.0,0.00019452,3]
[351034973,1738302653997,-500.0,0.00019452,3]
[351034974,1738302654007,-500.0,0.00019452,3]
[351034975,1738302654017,-5195.87,0.00019452,3]
[351034976,1738302654027,-500.0,0.00019452,3]
[351034977,1738302654038,-902.77,0.00019452,3]
[351034978,1738302654048,-500.0,0.00019452,3]
[351034979,1738302654059,-1398.39,0.00019452,3]
[351034980,1738302654069,-1309.88,0.00019452,3]
[351034981,1738302654079,-9779.21,0.00019452,3]
[351034982,1738302654090,-500.0,0.00019452,3]
[351034983,1738302654100,-406.67223392,0.00019452,3]
[351034984,1738302654111,-500.0,0.00019452,3]
[351034985,1738302654123,-5296.65,0.00019452,3]
[351034986,1738302654133,-8196.15,0.00019452,3]
[351034987,1738302654144,-895.1,0.00019452,3]
[351034988,1738302654155,-6892.15,0.00019452,3]
[351034989,1738302654165,-3089.37,0.00019452,3]
[351034990,1738302654176,-500.0,0.00019452,3]
[351034991,1738302654186,-854.24,0.00019452,3]
[351034992,1738302654201,-3242.48,0.00019452,3]
[351034993,1738302654219,-5162.45,0.00019452,3]
[351034994,1738302654229,-826.34,0.00019452,3]
[351034995,1738302654240,-974.01,0.00019452,3]
[351034996,1738302654251,-1924.68,0.00019452,3]
[351034997,1738302654262,-519.73,0.00019452,3]
[351034998,1738302654272,-673.69,0.00019452,3]
[351034999,1738302654284,-500.0,0.00019452,3]
[351035000,1738302654294,-688.18,0.00019452,3]
[351035001,1738302654305,-3532.86,0.00019452,3]
[351035002,1738302654316,-2932.19,0.00019452,3]
[351035003,1738302654326,-525.1,0.00019452,3]
[351035004,1738302654337,-4566.24,0.00019452,3]
[351035005,1738302654347,-3877.16,0.00019452,3]
[351035006,1738302654357,-1631.15,0.00019452,3]
[351035007,1738302654367,-500.0,0.00019452,3]
[351035008,1738302654378,-9621.1,0.00019452,3]
[351035009,1738302654388,-500.0,0.00019452,3]
[351035010,1738302654398,-500.0,0.00019452,3]
[351035011,1738302654408,-667.14,0.00019452,3]
[351035012,1738302654418,-894.76,0.00019452,2]
[351035013,1738302654429,-1008.05,0.00019452,3]
[351035014,1738302654439,-4490.21,0.00019452,3]
[351035015,1738302654449,-4355.22,0.00019452,3]
[351035016,1738302654459,-500.0,0.00019452,3]
[351035017,1738302654470,-152.366095,0.00019452,2]
[351035018,1738302654480,-699.45,0.00019452,3]
[351035019,1738302654490,-876.55,0.00019452,3]
[351035020,1738302654500,-709.5,0.00019452,3]
[351035021,1738302654511,-1759.53,0.00019452,3]
[351035022,1738302654525,-1000.0,0.00019452,3]
[351035023,1738302654536,-1617.73,0.00019452,3]
[351035024,1738302654546,-2668.68,0.00019452,3]
[351035025,1738302654557,-3467.86,0.00019452,3]
[351035026,1738302654567,-2090.27,0.00019452,3]
[351035027,1738302654577,-500.0,0.00019452,3]
[351035028,1738302654587,-500.0,0.00019452,3]
[351035029,1738302654597,-10502.66,0.00019452,3]
[351035030,1738302654609,-640.56,0.00019452,3]
[351035031,1738302654619,-3444.84,0.00019452,3]
[351035032,1738302654629,-5049.06,0.00019452,3]
[351035033,1738302654639,-500.0,0.00019452,3]
[351035034,1738302654649,-9198.11,0.00019452,3]
[351035035,1738302654659,-624.32,0.00019452,3]
[351035036,1738302654669,-1857.11,0.00019452,3]
[351035037,1738302654679,-6695.11,0.00019452,3]
[351035038,1738302654689,-1132.21,0.00019452,3]
[351035039,1738302654699,-1815.6,0.00019452,3]
[351035040,1738302654709,-500.0,0.00019452,3]
[351035041,1738302654720,-151.0,0.00019452,2]
[351035042,1738302654731,-500.0,0.00019452,3]
[351035043,1738302654742,-4107.66,0.00019452,3]
[351035044,1738302654752,-3644.82,0.00019452,3]
[351035045,1738302654762,-870.41,0.00019452,3]
[351035046,1738302654772,-2795.4,0.00019452,3]
[351035047,1738302654783,-1332.12,0.00019452,3]
[351035048,1738302654794,-1184.59,0.00019452,3]
[351035049,1738302654803,-1325.28,0.00019452,3]
[351035050,1738302654815,-1181.44,0.00019452,3]
[351035051,1738302654825,-541.03,0.00019452,3]
[351035052,1738302654836,-3742.4,0.00019452,3]
[351035053,1738302654846,-1201.85,0.00019452,3]
[351035054,1738302654856,-151.0,0.00019452,2]
[351035055,1738302654866,-500.0,0.00019452,3]
[351035056,1738302654877,-1253.91,0.00019452,3]
[351035057,1738302654888,-1306.85,0.00019452,3]
[351035058,1738302654899,-500.0,0.00019452,3]
[351035059,1738302654910,-1946.23,0.00019452,3]
[351035060,1738302654920,-500.0,0.00019452,3]
[351035061,1738302654931,-500.0,0.00019452,3]
[351035062,1738302654942,-500.0,0.00019452,3]
[351035063,1738302654952,-500.0,0.00019452,3]
[351035064,1738302654962,-2024.32,0.00019452,3]
[351035065,1738302654972,-519.9,0.00019452,3]
[351035066,1738302654983,-1032.84,0.00019452,3]
[351035067,1738302654994,-2287.62,0.00019452,3]
[351035068,1738302655005,-2299.31,0.00019452,3]
[351035069,1738302655015,-290.53474016,0.00019452,3]
[351035070,1738302655026,-1081.24,0.00019452,3]
[351035071,1738302655036,-523.48,0.00019452,3]
[351035072,1738302655046,-1704.83,0.00019452,3]
[351035073,1738302655056,-6489.47,0.00019452,3]
[351035074,1738302655066,-500.0,0.00019452,3]
[351035075,1738302655076,-500.0,0.00019452,3]
[351035076,1738302655086,-847.04,0.00019452,3]
[351035077,1738302655097,-151.0,0.00019452,2]
[351035078,1738302655107,-1189.29,0.00019452,3]
[351035079,1738302655118,-285.73583477,0.00019452,3]
[351035080,1738302655129,-500.0,0.00019452,3]
[351035081,1738302655139,-500.0,0.00019452,3]
[351035082,1738302655149,-500.0,0.00019452,3]
[351035083,1738302655159,-7415.7,0.00019452,3]
[351035084,1738302655170,-157.06,0.00019452,3]
[351035085,1738302655181,-500.0,0.00019473,2]
[351035086,1738302655191,-168.66754733,0.00019489,2]
[351035087,1738302655201,-20755.9894,0.00019489,2]
[351035088,1738302655212,-2323.80576167,0.00019504,2]
[351035089,1738302655222,-1623.39326,0.0001953,2]
[351035090,1738302655232,-2930.412694,0.00019589,3]
[351035091,1738302655243,-153.54865,0.00019589,3]
[351035092,1738302655252,-156.16374,0.00019589,3]
[351035093,1738302655262,-500.0,0.00019589,3]
[351035094,1738302655272,-2043.192843,0.00019589,3]
[351035095,1738302655282,-627.46,0.00019589,3]
[351035096,1738302655292,-603.44,0.00019589,3]
[351035097,1738302655301,-500.0,0.00019589,3]
[351035098,1738302655311,-616.2,0.00019589,3]
[351035099,1738302655321,-500.0,0.00019589,3]
[351035100,1738302655331,-500.0,0.00019589,3]
[351035101,1738302655342,-704.16,0.00019589,3]
[351035102,1738302655352,-500.0,0.00019589,3]
[351035103,1738302655362,-604.89,0.00019589,14]
[351035104,1738302655372,-500.0,0.00019589,3]
[351035105,1738302655383,-500.0,0.00019589,3]
[351035106,1738302655393,-661.35,0.00019589,3]
[351035107,1738302655404,-631.72,0.00019589,3]
[351035108,1738302655413,-500.0,0.00019589,3]
[351035109,1738302655423,-707.95,0.00019589,3]
[351035110,1738302655434,-500.0,0.00019589,3]
[351035111,1738302655444,-614.05,0.00019589,3]
[351035112,1738302655454,-500.0,0.00019589,3]
[351035113,1738302655464,-614.76,0.00019589,3]
[351035114,1738302655475,-500.0,0.00019589,3]
[351035115,1738302655485,-500.0,0.00019589,3]
[351035116,1738302655495,-500.0,0.00019589,3]
[351035117,1738302655506,-561.64,0.00019589,3]
[351035118,1738302655606,-500.0,0.00019589,3]
[351035119,1738302655616,-503.9,0.00019589,3]
[351035120,1738302655626,-602.64,0.00019589,3]
[351035121,1738302655636,-500.0,0.00019589,3]
[351035122,1738302655646,-500.0,0.00019589,3]
[351035123,1738302655664,-616.07,0.00019589,3]
[351035124,1738302655678,-500.0,0.00019589,3]
[351035125,1738302655688,-500.0,0.00019589,3]
[351035126,1738302655699,-500.0,0.00019589,3]
[351035127,1738302655709,-548.59,0.00019589,3]
[351035128,1738302655719,-500.0,0.00019589,3]
[351035129,1738302655729,-560.92,0.00019589,3]
[351035130,1738302655738,-1509.23,0.00019589,3]
[351035131,1738302655747,-193.63788471,0.00019589,3]
[351035132,1738302655757,-1193.37,0.00019589,3]
[351035133,1738302655767,-1339.7,0.00019589,3]
[351035134,1738302655776,-500.0,0.00019589,3]
[351035135,1738302655786,-500.0,0.00019589,3]
[351035136,1738302655796,-500.0,0.00019589,3]
[351035137,1738302655805,-500.0,0.00019589,3]
[351035138,1738302655815,-834.15,0.00019589,3]
[351035139,1738302655824,-500.0,0.00019589,3]
[351035140,1738302655834,-500.0,0.00019589,3]
[351035141,1738302655844,-500.0,0.00019589,3]
[351035142,1738302655854,-553.18,0.00019589,3]
[351035143,1738302655864,-683.82,0.00019589,3]
[351035144,1738302655873,-500.0,0.00019589,3]
[351035145,1738302655883,-545.65,0.00019589,3]
[351035146,1738302655893,-500.0,0.00019589,3]
[351035147,1738302655902,-500.0,0.00019589,3]
[351035148,1738302655912,-500.0,0.00019589,3]
[351035149,1738302655921,-500.0,0.00019589,3]
[351035150,1738302655931,-1174.38,0.00019589,3]
[351035151,1738302655940,-618.04,0.00019589,3]
[351035152,1738302655949,-604.15,0.00019589,3]
[351035153,1738302655959,-500.0,0.00019589,3]
[351035154,1738302655970,-573.61,0.00019589,3]
[351035155,1738302655978,-1527.3,0.00019589,3]
[351035156,1738302655989,-500.0,0.00019589,3]
[351035157,1738302655999,-526.87,0.00019589,3]
[351035158,1738302656009,-500.0,0.00019589,3]
[351035159,1738302656018,-500.0,0.00019589,3]
[351035160,1738302656028,-1262.98,0.00019589,3]
[351035161,1738302656038,-597.11,0.00019589,3]
[351035162,1738302656048,-500.0,0.00019589,3]
[351035163,1738302656059,-515.97,0.00019589,3]
[351035164,1738302656069,-787.14,0.00019589,3]
[351035165,1738302656078,-500.0,0.00019589,3]
[351035166,1738302656088,-558.95,0.00019589,3]
[351035167,1738302656098,-1542.1,0.00019589,3]
[351035168,1738302656107,-585.15,0.00019589,3]
[351035169,1738302656117,-986.49,0.00019589,3]
[351035170,1738302656126,-500.0,0.00019589,3]
[351035171,1738302656136,-606.1,0.00019589,3]
[351035172,1738302656146,-740.69,0.00019589,3]
[351035173,1738302656156,-903.39,0.00019589,3]
[351035174,1738302656165,-981.44,0.00019589,3]
[351035175,1738302656175,-1022.85,0.00019589,3]
[351035176,1738302656185,-150.823464,0.00019589,3]
[351035177,1738302656194,-577.34,0.00019589,3]
[351035178,1738302656204,-500.0,0.00019589,3]
[351035179,1738302656214,-717.83,0.00019589,3]
[351035180,1738302656225,-500.0,0.00019589,3]
[351035181,1738302656235,-1065.81,0.00019589,3]
[351035182,1738302656244,-560.57,0.00019589,3]
[351035183,1738302656254,-500.0,0.00019589,3]
[351035184,1738302656264,-624.92,0.00019589,3]
[351035185,1738302656274,-500.0,0.00019589,3]
[351035186,1738302656283,-971.16,0.00019589,3]
[351035187,1738302656293,-500.0,0.00019589,3]
[351035188,1738302656303,-534.99,0.00019589,3]
[351035189,1738302656313,-608.32,0.00019589,3]
[351035190,1738302656322,-909.28,0.00019589,3]
[351035191,1738302656331,-500.0,0.00019589,3]
[351035192,1738302656341,-812.17,0.00019589,3]
[351035193,1738302656358,-627.46,0.00019589,3]
[351035194,1738302656368,-1251.34,0.00019589,3]
[351035195,1738302656378,-500.0,0.00019589,3]
[351035196,1738302656387,-500.0,0.00019589,3]
[351035197,1738302656397,-500.0,0.00019589,3]
[351035198,1738302656406,-500.0,0.00019589,3]
[351035199,1738302656416,-500.0,0.00019589,3]
[351035200,1738302656426,-1038.11,0.00019589,3]
[351035201,1738302656436,-900.52,0.00019589,3]
[351035202,1738302656446,-500.0,0.00019589,3]
[351035203,1738302656456,-626.07,0.00019589,3]
[351035204,1738302656465,-1237.37,0.00019589,3]
[351035205,1738302656476,-926.46,0.00019589,3]
[351035206,1738302656486,-1321.28,0.00019589,3]
[351035207,1738302656495,-500.0,0.00019589,3]
[351035208,1738302656506,-553.16466088,0.00019589,3]
[351035209,1738302656517,-500.0,0.00019589,3]
[351035210,1738302656528,-500.0,0.00019589,3]
[351035211,1738302656537,-560.07,0.00019589,3]
[351035212,1738302656547,-1089.91,0.00019589,3]
[351035213,1738302656558,-994.81,0.00019589,3]
[351035214,1738302656569,-1490.3,0.00019589,3]
[351035215,1738302656578,-641.19,0.00019589,3]
[351035216,1738302656588,-859.57,0.00019589,3]
[351035217,1738302656600,-579.27,0.00019589,3]
[351035218,1738302656610,-550.2,0.00019589,3]
[351035219,1738302656620,-301.85366219,0.00019589,3]
[351035220,1738302656630,-760.46,0.00019589,3]
[351035221,1738302656640,-570.99,0.00019589,3]
[351035222,1738302656650,-500.0,0.00019589,3]
[351035223,1738302656659,-500.0,0.00019589,3]
[351035224,1738302656669,-500.0,0.00019589,3]
[351035225,1738302656679,-500.0,0.00019589,3]
[351035226,1738302656689,-500.0,0.00019589,3]
[351035227,1738302656699,-1194.14,0.00019589,3]
[351035228,1738302656709,-536.26,0.00019589,3]
[351035229,1738302656718,-691.64,0.00019589,3]
[351035230,1738302656729,-500.0,0.00019589,3]
[351035231,1738302656738,-744.94,0.00019589,3]
[351035232,1738302656749,-500.0,0.00019589,3]
[351035233,1738302656759,-706.22,0.00019589,3]
[351035234,1738302656769,-871.53,0.00019589,3]
[351035235,1738302656778,-226.71368351,0.00019589,3]
[351035236,1738302656788,-1636.33,0.00019589,3]
[351035237,1738302656798,-500.02,0.00019589,3]
[351035238,1738302656807,-928.93,0.00019589,3]
[351035239,1738302656817,-216.364215,0.00019589,2]
[351035240,1738302656827,-729.26,0.00019589,3]
[351035241,1738302656837,-996.78,0.00019589,3]
[351035242,1738302656847,-1150.62,0.00019589,3]
[351035243,1738302656857,-692.84,0.00019589,3]
[351035244,1738302656885,-500.0,0.00019589,3]
[351035245,1738302656894,-1465.04,0.00019589,3]
[351035246,1738302656905,-500.0,0.00019589,3]
[351035247,1738302656916,-808.14,0.00019589,3]
[351035248,1738302656926,-1515.55,0.00019589,3]
[351035249,1738302656937,-665.53,0.00019589,3]
[351035250,1738302656947,-500.0,0.00019589,3]
[351035251,1738302656958,-500.0,0.00019589,3]
[351035252,1738302656969,-500.0,0.00019589,3]
[351035253,1738302656979,-500.0,0.00019589,3]
[351035254,1738302656989,-592.49,0.00019589,3]
[351035255,1738302656999,-500.0,0.00019589,3]
[351035256,1738302657010,-500.0,0.00019589,3]
[351035257,1738302657021,-500.0,0.00019589,3]
[351035258,1738302657032,-1296.32,0.00019589,3]
[351035259,1738302657043,-828.71,0.00019589,3]
[351035260,1738302657053,-500.0,0.00019589,3]
[351035261,1738302657063,-254.56031347,0.00019589,3]
[351035262,1738302657073,-500.0,0.00019589,3]
[351035263,1738302657084,-564.86,0.00019589,3]
[351035264,1738302657095,-589.55,0.00019589,3]
[351035265,1738302657110,-632.81,0.00019589,3]
[351035266,1738302657129,-1225.26,0.00019589,3]
[351035267,1738302657140,-500.0,0.00019589,3]
[351035268,1738302657150,-500.0,0.00019589,3]
[351035269,1738302657161,-824.54,0.00019589,3]
[351035270,1738302657171,-863.34,0.00019589,3]
[351035271,1738302657182,-504.39,0.00019589,3]
[351035272,1738302657192,-500.0,0.00019589,3]
[351035273,1738302657202,-500.0,0.00019589,3]
[351035274,1738302657212,-528.95917543,0.00019589,3]
[351035275,1738302657225,-900.29,0.00019589,3]
[351035276,1738302657235,-500.0,0.00019589,3]
[351035277,1738302657245,-500.0,0.00019589,3]
[351035278,1738302657255,-500.0,0.00019589,3]
[351035279,1738302657265,-500.0,0.00019589,3]
[351035280,1738302657275,-655.9,0.00019589,3]
[351035281,1738302657285,-500.0,0.00019589,3]
[351035282,1738302657296,-500.0,0.00019589,3]
[351035283,1738302657306,-613.6,0.00019589,3]
[351035284,1738302657316,-500.0,0.00019589,3]
[351035285,1738302657326,-1377.54,0.00019589,3]
[351035286,1738302657336,-1943.55,0.00019589,3]
[351035287,1738302657346,-500.0,0.00019589,3]
[351035288,1738302657356,-1354.77,0.00019589,3]
[351035289,1738302657366,-342.478336,0.00019589,3]
[351035290,1738302657376,-946.02,0.00019589,3]
[351035291,1738302657386,-500.0,0.00019589,3]
[351035292,1738302657395,-1541.47,0.00019589,3]
[351035293,1738302657406,-1088.91,0.00019589,3]
[351035294,1738302657416,-660.19,0.00019589,3]
[351035295,1738302657425,-532.31,0.00019589,3]
[351035296,1738302657436,-500.0,0.00019589,3]
[351035297,1738302657446,-964.35,0.00019589,3]
[351035298,1738302657456,-500.0,0.00019589,3]
[351035299,1738302657466,-551.8,0.00019589,3]
[351035300,1738302657477,-574.76,0.00019589,3]
[351035301,1738302657487,-616.35,0.00019589,3]
[351035302,1738302657498,-500.0,0.00019589,3]
[351035303,1738302657508,-1007.99,0.00019589,3]
[351035304,1738302657522,-1101.97,0.00019589,3]
[351035305,1738302657532,-194.46086468,0.00019589,3]